bitfinex/quotes_SOLUSD_20241117
["timestamp","ask_amount","ask_price","bid_price","bid_amount"]
[1731879374250,10.38346567,235.5,235.43,0.09367462]
[1731879374452,10.38346567,235.52,235.43,0.09367462]
[1731879375087,10.38346567,235.52,235.44,14.8657]
[1731879375593,10.38346567,235.54,235.46,10.38346567]
[1731879376096,10.38346567,235.56,235.47,0.09367462]
[1731879376464,10.38346567,235.56,235.48,10.38346567]
[1731879377072,10.38346567,235.52,235.45,4.247]
[1731879377269,10.38346567,235.5,235.43,14.8659]
[1731879377472,10.38346567,235.46,235.4,4.2479]
[1731879377666,10.38346567,235.42,235.38,14.8691]
[1731879379363,10.38346567,235.42,235.3,0.1]
[1731879379364,10.38346567,235.39,235.32,10.38346567]
[1731879379565,10.38346567,235.37,235.3,4.2498]
[1731879379773,0.2,235.49,235.3,4.2498]
[1731879379774,10.38346567,235.39,235.3,14.63326567]
[1731879380273,16.64365603,235.4,235.31,16.64365603]
[1731879380475,20.0,235.39,235.31,16.64365603]
[1731879380671,20.0,235.43,235.35,16.64365603]
[1731879380887,20.0,235.41,235.33,16.64365603]
[1731879382070,24.2479,235.41,235.33,16.64365603]
[1731879382478,20.0,235.39,235.32,4.2493]
[1731879383080,20.0,235.39,235.3,14.8745]
[1731879383279,20.0,235.35,235.25,27.27035603]
[1731879383478,16.64365603,235.34,235.25,27.27035603]
[1731879384385,20.89285603,235.34,235.25,27.27035603]
[1731879384601,16.64365603,235.3,235.21,16.64365603]
[1731879384808,16.64365603,235.28,235.2,15.3424823]
[1731879385505,16.64365603,235.3,235.21,16.64365603]
[1731879385694,16.64365603,235.28,235.2,11.0908823]
[1731879385880,16.64365603,235.28,235.2,0.4618823]
[1731879387005,20.89395603,235.28,235.2,0.4618823]
[1731879387384,16.64365603,235.3,235.23,16.64365603]
[1731879387592,20.0,235.31,235.23,16.64365603]
[1731879389104,20.0,235.31,235.23,20.89465603]
[1731879389320,20.0,235.31,235.23,31.52245603]
[1731879389482,4.2495,235.32,235.25,16.64365603]
[1731879389912,20.0,235.31,235.23,27.27145603]
[1731879390095,16.64365603,235.3,235.21,16.64365603]
[1731879391090,4.25,235.29,235.21,16.64365603]
[1731879391913,20.0,235.25,235.2,0.4618823]
[1731879392284,16.64365603,235.22,235.2,0.4618823]
[1731879392490,20.0,235.21,235.2,0.4618823]
[1731879393599,24.2515,235.21,235.2,0.4618823]
[1731879399245,24.59615462,235.21,235.2,0.4618823]
[1731879399434,24.59615462,235.21,235.09,16.64365603]
[1731879399435,0.12549,235.2,235.09,16.64365603]
[1731879399615,20.0,235.16,235.09,16.64365603]
[1731879400513,4.2526,235.15,235.08,10.6344]
[1731879400916,4.2526,235.15,235.09,16.64365603]
[1731879402321,4.2526,235.15,235.08,10.42337636]
[1731879403618,10.42337636,235.1,235.02,10.6373]
[1731879403822,10.42337636,235.08,234.99,10.42337636]
[1731879404140,20.0,235.07,234.99,10.42337636]
[1731879405340,0.2,235.12,234.99,10.42337636]
[1731879405341,20.0,235.05,234.99,10.42337636]
[1731879406833,4.2545,235.04,234.97,21.52455866]
[1731879407346,20.0,235.05,234.99,10.42337636]
[1731879407549,4.2533,235.11,235.03,10.42337636]
[1731879408336,4.2533,235.11,235.05,10.42337636]
[1731879408728,4.2533,235.11,235.03,14.67797636]
[1731879408942,14.67667636,235.11,235.03,10.42337636]
[1731879409522,14.67667636,235.11,235.0,10.42337636]
[1731879409523,10.42337636,235.09,235.0,10.42337636]
[1731879410926,14.67717636,235.09,235.0,10.42337636]
[1731879411130,20.0,235.06,234.98,10.42337636]
[1731879412620,20.0,235.06,234.97,4.7175823]
[1731879412621,4.2544,235.05,234.97,0.4618823]
[1731879412827,20.0,235.02,234.97,0.4618823]
[1731879413332,10.42337636,235.01,234.97,0.4618823]
[1731879414747,4.2553,235.0,234.97,0.4618823]
[1731879414949,10.42337636,234.99,234.97,0.4618823]
[1731879415248,20.0,234.98,234.97,0.4618823]
[1731879416223,44.027864,234.98,234.97,0.4618823]
[1731879416751,20.0,234.94,234.84,10.6452]
[1731879416963,10.42337636,234.9,234.84,10.6452]
[1731879418423,10.42337636,234.9,234.81,10.42337636]
[1731879418424,14.68047636,234.9,234.81,10.42337636]
[1731879418629,14.68047636,234.9,234.81,14.68207636]
[1731879419135,10.42337636,234.92,234.83,10.42337636]
[1731879419329,20.0,234.94,234.82,0.09367462]
[1731879419330,30.42337636,234.94,234.85,10.42337636]
[1731879420569,34.67977636,234.94,234.85,10.42337636]
[1731879420743,10.42337636,234.92,234.83,10.42337636]
[1731879420949,10.42337636,234.9,234.82,4.2585]
[1731879421643,10.42337636,234.92,234.83,10.42337636]
[1731879422442,10.42337636,234.9,234.82,10.6464]
[1731879422639,10.42337636,234.88,234.82,10.6464]
[1731879422844,20.0,234.87,234.79,14.68237636]
[1731879423046,10.42337636,234.88,234.79,14.68237636]
[1731879423346,10.42337636,234.86,234.74,14.91]
[1731879423544,14.68067636,234.89,234.8,10.42337636]
[1731879423751,20.0,234.88,234.8,10.42337636]
[1731879423956,10.42337636,234.87,234.78,10.42337636]
[1731879424366,14.68117636,234.87,234.78,14.68247636]
[1731879425049,4.2578,234.87,234.8,10.42337636]
[1731879426446,4.2578,234.87,234.78,14.9073]
[1731879426447,4.2578,234.87,234.78,21.07157636]
[1731879426854,4.2578,234.87,234.76,4.2596]
[1731879426855,10.42337636,234.85,234.76,10.42337636]
[1731879427458,20.0,234.86,234.78,10.42337636]
[1731879427854,20.0,234.86,234.76,10.42337636]
[1731879428470,14.68137636,234.85,234.76,10.42337636]
[1731879429051,4.258,234.85,234.78,10.42337636]
[1731879430153,13.79176097,234.92,234.83,10.42337636]
[1731879430154,4.2569,234.91,234.83,10.42337636]
[1731879430357,6.1709,234.92,234.87,10.42337636]
[1731879430571,20.6614,234.94,234.87,10.42337636]
[1731879431082,4.2565,234.94,234.87,10.42337636]
[1731879431788,20.0,234.95,234.87,10.42337636]
[1731879431789,4.2561,234.96,234.89,10.42337636]
[1731879432076,6.1709,234.97,234.89,10.42337636]
[1731879432282,14.67877636,235.0,234.91,10.42337636]
[1731879432464,14.67837636,235.02,234.94,4.2564]
[1731879432776,14.67797636,235.04,234.95,10.42337636]
[1731879433155,10.42337636,235.06,234.97,10.42337636]
[1731879433372,14.67767636,235.06,234.97,10.42337636]
[1731879433579,10.42337636,235.04,234.95,10.42337636]
[1731879434276,10.42337636,234.97,234.85,14.68137636]
[1731879434487,10.42337636,234.93,234.85,10.42337636]
[1731879434788,10.42337636,234.93,234.83,25.32727636]
[1731879434980,10.42337636,234.93,234.85,10.42337636]
[1731879435277,20.0,234.92,234.83,10.42337636]
[1731879435479,20.0,234.92,234.81,4.2587]
[1731879435480,20.0,234.9,234.81,10.42337636]
[1731879435784,20.0,234.88,234.79,10.42337636]
[1731879436494,10.42337636,234.87,234.79,10.42337636]
[1731879436779,4.2578,234.86,234.8,0.12549]
[1731879436985,4.2578,234.86,234.79,10.42337636]
[1731879437171,24.2578,234.86,234.79,10.42337636]
[1731879437369,24.2578,234.86,234.77,21.07167636]
[1731879437571,24.2578,234.86,234.77,25.33107636]
[1731879437780,24.2578,234.86,234.77,21.07167636]
[1731879438468,24.2578,234.86,234.78,16.71866066]
[1731879438887,24.2578,234.86,234.78,0.12549]
[1731879440489,20.0,234.82,234.74,16.71866066]
[1731879440785,16.71866066,234.81,234.72,16.71866066]
[1731879441087,16.71866066,234.79,234.7,16.71866066]
[1731879441270,20.0,234.8,234.72,16.71866066]
[1731879442165,36.71866066,234.83,234.72,16.71866066]
[1731879442585,20.0,234.8,234.72,16.71866066]
[1731879444696,4.2588,234.81,234.74,16.71866066]
[1731879445997,20.0,234.78,234.68,20.97966066]
[1731879446176,16.71866066,234.77,234.68,16.71866066]
[1731879447199,16.71866066,234.75,234.66,16.71866066]
[1731879447702,20.0,234.74,234.66,16.71866066]
[1731879448315,24.26,234.74,234.66,16.71866066]
[1731879448599,24.26,234.74,234.64,16.71866066]
[1731879448781,24.26,234.74,234.62,27.37396066]
[1731879449176,63.88405862,234.74,234.6,16.71866066]
[1731879449389,63.88405862,234.74,234.59,4.2626]
[1731879449594,70.47465862,234.74,234.6,16.71866066]
[1731879450895,0.21916462,234.73,234.6,16.71866066]
[1731879451085,16.71866066,234.66,234.57,14.9207]
[1731879451505,20.0,234.72,234.6,16.71866066]
[1731879451801,20.0,234.69,234.6,16.71866066]
[1731879452104,4.2611,234.68,234.6,20.98116066]
[1731879452288,39.06276066,234.74,234.64,16.71866066]
[1731879452491,39.06276066,234.74,234.63,0.12549]
[1731879452492,16.71866066,234.76,234.68,16.71866066]
[1731879452705,20.97836066,234.76,234.68,16.71866066]
[1731879453509,20.97836066,234.76,234.68,15.26843666]
[1731879453890,20.97836066,234.76,234.63,15.48729]
[1731879453891,20.0,234.75,234.66,16.71866066]
[1731879454089,16.71866066,234.74,234.66,16.71866066]
[1731879454292,20.0,234.75,234.67,0.12549]
[1731879454498,20.0,234.75,234.68,16.71866066]
[1731879454694,16.71866066,234.74,234.66,27.37236066]
[1731879455209,20.97806066,234.78,234.69,0.12549]
[1731879455904,16.71866066,234.78,234.7,16.71866066]
[1731879456106,4.259,234.8,234.72,16.71866066]
[1731879456908,4.2582,234.85,234.78,16.71866066]
[1731879457112,4.2582,234.85,234.76,16.71866066]
[1731879457113,16.71866066,234.84,234.76,16.71866066]
[1731879458123,16.71866066,234.84,234.77,4.38489]
[1731879458314,14.70889996,234.85,234.77,4.38489]
[1731879459324,10.45069996,234.81,234.72,10.45069996]
[1731879459507,10.45069996,234.79,234.71,4.2604]
[1731879459709,20.0,234.78,234.7,21.10239996]
[1731879459909,30.45069996,234.84,234.7,21.10239996]
[1731879459910,4.2573,234.89,234.77,10.45069996]
[1731879460111,4.2573,234.89,234.81,10.45069996]
[1731879460306,10.45069996,234.86,234.77,10.45069996]
[1731879460522,10.45069996,234.82,234.73,10.45069996]
[1731879460830,10.45069996,234.84,234.75,10.45069996]
[1731879461034,10.45069996,234.84,234.76,0.12549]
[1731879461326,14.70859996,234.86,234.78,4.2593]
[1731879461522,10.45069996,234.91,234.82,0.12549]
[1731879462628,20.0,234.9,234.82,4.38399]
[1731879463027,20.0,234.9,234.82,15.03039]
[1731879463208,20.0,234.9,234.83,10.45069996]
[1731879463601,24.2568,234.92,234.83,10.45069996]
[1731879464003,173.0387,234.99,234.87,10.45069996]
[1731879464004,4.2564,234.94,234.87,10.45069996]
[1731879464506,24.2564,234.94,234.87,10.45069996]
[1731879464700,24.2564,234.94,234.85,10.45069996]
[1731879466220,24.2564,234.94,234.85,14.70859996]
[1731879469021,10.45069996,234.97,234.87,10.45069996]
[1731879469228,10.45069996,234.99,234.89,10.45069996]
[1731879469415,14.70579996,235.01,234.91,10.45069996]
[1731879469816,10.45069996,234.99,234.91,10.45069996]
[1731879470717,24.2556,234.98,234.91,10.45069996]
[1731879472223,4.2545,235.04,234.94,0.12549]
[1731879472444,10.45069996,235.03,234.94,0.12549]
[1731879472648,10.45069996,235.03,234.93,10.45069996]
[1731879472851,10.45069996,235.01,234.93,10.45069996]
[1731879473356,14.39240647,235.09,234.94,4.38189]
[1731879473357,4.2549,235.02,234.94,4.38189]
[1731879473542,24.2549,235.02,234.94,4.38189]
[1731879473931,10.45069996,234.99,234.92,15.7533]
[1731879474135,20.0,234.98,234.92,15.7533]
[1731879474341,20.0,234.98,234.89,10.45069996]
[1731879474654,10.45069996,234.93,234.86,15.7533]
[1731879475249,4.2567,234.92,234.86,15.7533]
[1731879475958,10.45069996,234.93,234.86,41.10639996]
[1731879476168,10.45069996,234.93,234.86,26.3979]
[1731879476353,14.70729996,234.93,234.86,26.3979]
[1731879477858,14.70729996,234.93,234.86,30.6557]
[1731879478554,10.45069996,234.93,234.86,41.10639996]
[1731879479235,14.70689996,234.95,234.86,41.10639996]
[1731879479649,20.0,234.94,234.86,41.10639996]
[1731879479933,10.45069996,234.99,234.9,10.45069996]
[1731879480130,10.45069996,234.95,234.86,41.10639996]
[1731879480346,10.45069996,234.93,234.86,30.6557]
[1731879481156,10.45069996,234.95,234.86,41.10639996]
[1731879481336,20.0,234.94,234.86,41.10639996]
[1731879481538,14.70719996,234.93,234.86,30.6557]
[1731879481953,10.45069996,234.93,234.86,30.6557]
[1731879483454,10.45069996,234.93,234.76,21.2974]
[1731879483455,10.45069996,234.91,234.82,10.45069996]
[1731879483655,10.45069996,234.91,234.83,0.25098]
[1731879483854,20.0,234.92,234.84,10.45069996]
[1731879484861,20.0,234.92,234.85,4.258]
[1731879484862,24.2568,234.92,234.85,4.258]
[1731879485041,10.45069996,234.91,234.83,4.50918]
[1731879485753,10.45069996,234.91,234.83,15.15508]
[1731879486849,24.2568,234.92,234.84,25.35419996]
[1731879487871,4.2564,234.94,234.86,10.45069996]
[1731879488067,20.0,234.92,234.84,25.35419996]
[1731879488376,10.45069996,234.89,234.82,4.2584]
[1731879489255,20.0,234.9,234.82,25.35549996]
[1731879489447,10.45069996,234.93,234.84,10.45069996]
[1731879489644,24.2564,234.94,234.86,10.45069996]
[1731879490148,20.0,234.92,234.86,10.45069996]
[1731879490774,4.2564,234.94,234.87,4.2576]
[1731879491069,24.2564,234.94,234.87,4.2576]
[1731879491270,24.2564,234.94,234.85,4.38329]
[1731879491477,10.45069996,234.93,234.85,0.12549]
[1731879491657,20.0,234.88,234.82,10.6464]
[1731879491849,20.0,234.88,234.8,30.58949996]
[1731879491850,10.45069996,234.87,234.8,15.8801]
[1731879492044,10.45069996,234.87,234.8,20.1389]
[1731879492248,4.2564,234.94,234.84,10.45069996]
[1731879492450,20.0,234.93,234.84,10.45069996]
[1731879492758,4.2567,234.92,234.84,14.70869996]
[1731879493160,4.2567,234.92,234.85,0.12549]
[1731879493848,14.70739996,234.92,234.85,0.12549]
[1731879495068,14.70739996,234.92,234.85,4.38349]
[1731879497367,20.0,234.98,234.86,10.54437458]
[1731879497568,10.45069996,235.03,234.95,0.34465462]
[1731879497769,183.5638,235.15,234.95,0.34465462]
[1731879497770,4.2531,235.12,235.02,10.45069996]
[1731879497975,4.2531,235.12,235.05,10.45069996]
[1731879498981,14.70349996,235.14,235.06,0.12549]
[1731879499369,4.2528,235.14,235.07,10.45069996]
[1731879499671,10.45069996,235.18,235.09,10.45069996]
[1731879499855,10.45069996,235.16,235.07,10.45069996]
[1731879500057,10.45069996,235.14,235.05,21.08669996]
[1731879500261,10.45069996,235.12,235.04,0.12549]
[1731879500482,14.9821,235.18,235.03,16.4146]
[1731879500483,10.45069996,235.1,235.03,16.4146]
[1731879500679,20.0,235.09,235.03,16.4146]
[1731879501764,24.2537,235.09,235.03,16.4146]
[1731879501985,20.0,235.07,235.0,10.6382]
[1731879502196,20.0,235.05,234.98,16.4146]
[1731879502500,20.0,235.05,234.98,20.6702]
[1731879502669,20.0,235.05,234.98,16.4146]
[1731879503069,24.2545,235.05,234.98,16.4146]
[1731879504082,10.45069996,235.07,234.98,16.4146]
[1731879504277,20.0,235.06,234.99,10.45069996]
[1731879505280,4.2544,235.05,234.99,10.45069996]
[1731879505474,20.0,235.04,234.97,10.45069996]
[1731879505902,20.0,235.04,234.96,0.25098]
[1731879506698,20.0,235.04,234.95,21.09119996]
[1731879506876,10.45069996,235.03,234.95,21.09119996]
[1731879507077,20.0,235.02,234.93,10.45069996]
[1731879507277,10.45069996,235.03,234.89,10.45069996]
[1731879507278,20.0,234.97,234.89,10.45069996]
[1731879507502,10.45069996,234.96,234.87,10.45069996]
[1731879507680,20.0,234.95,234.87,10.45069996]
[1731879508004,20.0,234.95,234.86,20.6723]
[1731879508005,10.45069996,234.94,234.86,16.4146]
[1731879508312,20.0,234.93,234.86,16.4146]
[1731879508477,20.0,234.93,234.85,21.09559996]
[1731879508883,20.0,234.93,234.85,25.35359996]
[1731879509080,20.0,234.91,234.83,10.45069996]
[1731879509289,20.0,234.89,234.81,26.86529996]
[1731879509612,20.0,234.89,234.83,10.45069996]
[1731879509979,4.2571,234.9,234.81,26.86529996]
[1731879509980,14.70779996,234.9,234.81,26.86529996]
[1731879510183,20.0,234.89,234.81,26.86529996]
[1731879510384,20.0,234.89,234.81,10.45069996]
[1731879511101,20.0,234.89,234.82,0.12549]
[1731879511294,24.2569,234.91,234.85,10.45069996]
[1731879511710,4.2569,234.91,234.85,10.45069996]
[1731879513409,24.2566,234.93,234.85,10.45069996]
[1731879513580,4.2556,234.98,234.91,10.45069996]
[1731879513785,6.0772,235.01,234.93,10.45069996]
[1731879514006,4.255,235.02,234.95,10.45069996]
[1731879514507,14.70569996,235.02,234.93,10.45069996]
[1731879516310,4.2553,235.0,234.93,10.45069996]
[1731879517105,4.2553,235.0,234.89,14.9003]
[1731879517303,20.0,234.95,234.88,10.45069996]
[1731879518706,4.2564,234.94,234.88,10.45069996]
[1731879518908,4.2564,234.94,234.73,0.1]
[1731879518909,10.45069996,234.9,234.76,26.3879]
[1731879519136,20.0,234.87,234.79,10.45069996]
[1731879519510,20.0,234.85,234.78,10.45069996]
[1731879519713,20.0,234.85,234.8,10.45069996]
[1731879520111,20.0,234.87,234.8,10.45069996]
[1731879520441,23.776884,234.86,234.77,16.72081072]
[1731879520619,36.72081072,234.85,234.75,16.72081072]
[1731879520808,4.2582,234.84,234.75,16.72081072]
[1731879521014,16.72081072,234.83,234.75,16.72081072]
[1731879521235,20.0,234.82,234.75,16.72081072]
[1731879522109,10.6442,234.87,234.71,4.2604]
[1731879522110,16.72081072,234.89,234.81,16.72081072]
[1731879522316,23.776884,234.88,234.81,16.72081072]
[1731879522821,28.034384,234.88,234.81,16.72081072]
[1731879523710,20.0,234.87,234.81,16.72081072]
[1731879524017,16.72081072,234.98,234.85,16.72081072]
[1731879524233,15.5534,235.01,234.84,16.72081072]
[1731879524234,20.97611072,235.0,234.9,16.72081072]
[1731879524413,20.97611072,235.0,234.92,16.72081072]
[1731879525126,4.2553,235.0,234.92,16.72081072]
[1731879525333,24.2553,235.0,234.92,16.72081072]
[1731879526334,16.72081072,234.97,234.88,16.72081072]
[1731879526644,43.776884,234.96,234.88,16.72081072]
[1731879527421,4.2562,234.95,234.88,16.72081072]
[1731879528612,20.0,234.91,234.81,10.6467]
[1731879528813,20.0,234.91,234.82,16.72081072]
[1731879529035,20.0,234.91,234.84,16.72081072]
[1731879529222,20.0,234.91,234.79,4.259]
[1731879529520,4.2571,234.9,234.81,16.72081072]
[1731879530615,20.0,234.88,234.81,16.72081072]
[1731879530818,36.72081072,234.88,234.79,16.72081072]
[1731879531827,4.2571,234.9,234.83,16.72081072]
[1731879536064,20.97791072,234.9,234.83,16.72081072]
[1731879536254,20.97791072,234.9,234.79,4.259]
[1731879536255,20.0,234.89,234.81,16.72081072]
[1731879536441,4.2574,234.88,234.81,16.72081072]
[1731879539272,20.0,234.94,234.83,16.72081072]
[1731879539452,4.2561,234.96,234.83,0.09367462]
[1731879539648,21.678,235.01,234.93,16.72081072]
[1731879539964,25.9332,235.01,234.95,16.72081072]
[1731879540480,10.3798,235.01,234.93,16.72081072]
[1731879541050,20.0,235.0,234.93,16.72081072]
[1731879542148,36.72081072,235.0,234.91,16.72081072]
[1731879542372,36.72081072,235.0,234.89,16.72081072]
[1731879542679,36.72081072,235.0,234.88,10.6435]
[1731879542680,36.72081072,235.0,234.91,16.72081072]
[1731879542859,4.2555,234.99,234.91,16.72081072]
[1731879543055,20.0,234.97,234.89,16.72081072]
[1731879543262,20.0,234.95,234.87,16.72081072]
[1731879544082,20.0,234.93,234.85,16.72081072]
[1731879544783,23.776884,234.96,234.83,14.9041]
[1731879544784,20.0,234.91,234.83,16.72081072]
[1731879545252,20.0,234.91,234.79,4.259]
[1731879545253,20.0,234.89,234.81,16.72081072]
[1731879545985,20.0,234.87,234.79,16.72081072]
[1731879546183,20.0,234.85,234.77,16.72081072]
[1731879546760,4.2582,234.84,234.77,16.72081072]
[1731879547982,23.776884,234.83,234.77,16.72081072]
[1731879548285,36.72081072,234.82,234.73,16.72081072]
[1731879548581,36.72081072,234.82,234.62,21.3108]
[1731879548582,20.0,234.77,234.63,10.6549]
[1731879548783,23.776884,234.76,234.68,16.72081072]
[1731879548981,20.0,234.73,234.66,16.72081072]
[1731879549669,20.0,234.73,234.64,16.72081072]
[1731879549863,46.78049472,234.74,234.64,16.72081072]
[1731879549864,20.0,234.71,234.64,16.72081072]
[1731879550081,4.2607,234.7,234.64,16.72081072]
[1731879550959,4.2607,234.7,234.62,16.72081072]
[1731879551161,4.2607,234.7,234.6,27.37721072]
[1731879551162,16.72081072,234.69,234.6,27.37721072]
[1731879551573,20.0,234.68,234.6,27.37721072]
[1731879552180,4.2613,234.67,234.6,27.37721072]
[1731879552765,20.0,234.66,234.58,16.72081072]
[1731879552967,20.0,234.66,234.54,0.12549]
[1731879552968,20.0,234.64,234.56,16.72081072]
[1731879553470,20.0,234.62,234.54,27.37971072]
[1731879555177,16.72081072,234.68,234.6,16.72081072]
[1731879555375,4.2609,234.69,234.63,16.72081072]
[1731879555376,24.2609,234.69,234.63,16.72081072]
[1731879555583,4.2609,234.69,234.63,16.72081072]
[1731879555893,16.72081072,234.72,234.63,16.72081072]
[1731879556065,4.2603,234.73,234.65,16.72081072]
[1731879556380,16.72081072,234.72,234.63,16.72081072]
[1731879557086,20.0,234.71,234.63,16.72081072]
[1731879557796,20.0,234.71,234.65,16.72081072]
[1731879558172,24.2603,234.73,234.65,16.72081072]
[1731879558481,232.4,234.8,234.57,0.09367462]
[1731879558482,4.2598,234.75,234.67,16.72081072]
[1731879559575,24.2598,234.75,234.67,16.72081072]
[1731879559987,20.0,234.73,234.65,16.72081072]
[1731879560392,20.0,234.69,234.61,16.72081072]
[1731879561393,162.3,234.74,234.59,14.9195]
[1731879561394,20.0,234.73,234.65,16.72081072]
[1731879563006,20.0,234.73,234.65,20.98231072]
[1731879563187,162.3,234.79,234.65,20.98231072]
[1731879563188,20.0,234.75,234.67,16.72081072]
[1731879564193,4.2594,234.78,234.71,16.72081072]
[1731879564400,6.0765,234.8,234.73,16.72081072]
[1731879564601,27.05631072,234.8,234.71,16.72081072]
[1731879565815,20.0,234.79,234.71,16.72081072]
[1731879566326,4.2593,234.78,234.71,16.72081072]
[1731879568116,20.0,234.79,234.73,16.72081072]
[1731879568319,20.0,234.81,234.73,14.9107]
[1731879569402,24.2588,234.81,234.73,14.9107]
[1731879570417,16.72081072,234.8,234.73,14.9107]
[1731879570625,20.0,234.79,234.73,14.9107]
[1731879571929,24.2592,234.79,234.73,10.6505]
[1731879572128,24.2592,234.79,234.69,16.72081072]
[1731879572129,16.72081072,234.78,234.69,16.72081072]
[1731879572424,10.458216,234.77,234.69,0.12549]
[1731879572722,10.458216,234.77,234.69,15.03859]
[1731879574018,4.2593,234.78,234.7,10.458216]
[1731879574431,30.458216,234.79,234.7,10.458216]
[1731879574921,30.458216,234.79,234.69,15.03859]
[1731879574922,20.0,234.8,234.72,10.458216]
[1731879575125,10.458216,234.83,234.74,10.458216]
[1731879575313,10.458216,234.85,234.77,0.12549]
[1731879575819,10.458216,234.85,234.78,14.9075]
[1731879576600,20.0,234.84,234.78,14.9075]
[1731879577611,20.0,234.85,234.78,14.9075]
[1731879578549,10.458216,234.88,234.8,10.458216]
[1731879578843,10.458216,234.9,234.82,10.458216]
[1731879579221,162.3,234.97,234.84,10.458216]
[1731879579222,10.458216,234.94,234.84,10.458216]
[1731879579426,6.1,234.97,234.84,10.458216]
[1731879579427,10.458216,234.92,234.85,0.12549]
[1731879580234,16.71153757,234.93,234.85,0.12549]
[1731879580447,16.71153757,234.95,234.86,0.12549]
[1731879580622,16.71153757,234.97,234.88,0.12549]
[1731879580936,16.71153757,234.99,234.89,16.71153757]
[1731879581642,16.71153757,235.05,234.95,16.71153757]
[1731879582247,16.71153757,235.05,234.96,0.12549]
[1731879582442,16.71153757,235.07,234.99,16.71153757]
[1731879582734,0.1,235.22,235.01,16.71153757]
[1731879582735,16.71153757,235.09,235.01,16.71153757]
[1731879583317,16.71153757,235.11,235.02,0.12549]
[1731879583513,16.71153757,235.11,235.03,16.71153757]
[1731879583752,16.71153757,235.11,235.01,16.71153757]
[1731879583927,16.71153757,235.09,235.01,16.71153757]
[1731879584121,16.71153757,235.12,235.03,16.71153757]
[1731879584320,4.253,235.13,235.05,16.71153757]
[1731879585156,16.71153757,235.12,235.04,4.37989]
[1731879585361,20.0,235.11,235.04,4.37989]
[1731879586163,20.0,235.13,235.04,4.37989]
[1731879587842,20.0,235.13,235.07,16.71153757]
[1731879588061,20.0,235.15,235.07,16.71153757]
[1731879588941,20.0,235.11,235.02,33.16113757]
[1731879589329,20.0,235.11,235.03,0.09367462]
[1731879589527,20.0,235.15,235.03,14.8916]
[1731879589726,16.71153757,235.12,235.03,27.34843757]
[1731879589952,4.2525,235.16,234.96,16.71153757]
[1731879589953,16.71153757,235.06,234.97,33.16113757]
[1731879590162,16.71153757,235.04,234.95,16.71153757]
[1731879590448,4.2535,235.1,234.93,14.8978]
[1731879590449,16.71153757,235.02,234.93,16.71153757]
[1731879590953,16.71153757,235.0,234.92,0.09367462]
[1731879591173,16.71153757,235.0,234.91,37.41793757]
[1731879592554,16.71153757,235.0,234.92,0.34465462]
[1731879594241,16.71153757,235.07,234.99,16.71153757]
[1731879594439,16.71153757,235.05,234.98,0.12549]
[1731879594641,16.71153757,235.05,234.98,0.25098]
[1731879595232,16.71153757,235.07,234.99,0.21916462]
[1731879595431,16.71153757,235.07,235.0,0.12549]
[1731879596228,4.2539,235.08,235.01,16.71153757]
[1731879597963,16.71153757,235.06,234.97,16.71153757]
[1731879598263,4.2539,235.08,235.01,16.71153757]
[1731879598557,20.0,235.07,234.99,16.71153757]
[1731879600064,4.2542,235.06,234.99,16.71153757]
[1731879600647,4.2542,235.06,234.97,16.71153757]
[1731879600949,20.96573757,235.06,234.97,16.71153757]
[1731879601267,20.0,235.05,234.97,16.71153757]
[1731879601477,4.2542,235.06,234.99,16.71153757]
[1731879601933,4.2536,235.09,234.99,16.71153757]
[1731879602134,20.0,235.07,234.99,16.71153757]
[1731879602359,20.0,235.03,234.95,16.71153757]
[1731879603359,20.0,235.06,234.98,16.71153757]
[1731879603558,24.2542,235.06,234.98,16.71153757]
[1731879603761,4.2542,235.06,235.02,16.71153757]
[1731879604266,4.2542,235.06,234.99,10.43202781]
[1731879604870,20.0,235.05,234.95,10.43202781]
[1731879605055,20.0,235.05,234.91,20.7064]
[1731879605056,20.0,235.05,234.97,10.43202781]
[1731879606152,4.2545,235.04,234.97,10.43202781]
[1731879606662,4.2545,235.04,235.01,10.43202781]
[1731879607042,4.2545,235.04,234.99,10.43202781]
[1731879607457,4.2545,235.04,234.97,10.43202781]